fUSD/lending_fUSD_20250623
["ID","MTS","AMOUNT","RATE_DAILY","PERIOD"]
[367093939,1750654295266,-1253.89,0.00033698,7]
[367093940,1750654295275,-151.0,0.00033698,7]
[367093941,1750654295285,-151.0,0.00033698,7]
[367093942,1750654295294,-420.755357,0.00033698,7]
[367093943,1750654295303,-531.2,0.00033698,7]
[367093944,1750654295313,-3239.4,0.00033698,7]
[367093945,1750654295323,-490.0,0.00033698,7]
[367093946,1750654295332,-1079.72,0.00033698,7]
[367093947,1750654295341,-1733.51,0.00033698,7]
[367093948,1750654295351,-247.45871265,0.00033698,7]
[367093949,1750654295360,-6885.38,0.00033698,7]
[367093950,1750654295370,-476.874568,0.00033698,7]
[367093951,1750654295379,-490.0,0.00033698,7]
[367093952,1750654295389,-490.0,0.00033698,7]
[367093953,1750654295398,-490.0,0.00033698,7]
[367093954,1750654295407,-490.0,0.00033698,7]
[367093955,1750654295417,-490.0,0.00033698,7]
[367093956,1750654295426,-589.1,0.00033698,7]
[367093957,1750654295435,-710.72,0.00033698,7]
[367093958,1750654295445,-490.0,0.00033698,7]
[367093959,1750654295455,-1828.05,0.00033698,7]
[367093960,1750654295463,-1509.41,0.00033698,7]
[367093961,1750654295473,-490.0,0.00033698,7]
[367093962,1750654295482,-1094.4,0.00033698,7]
[367093963,1750654295491,-688.87,0.00033698,7]
[367093964,1750654295500,-2095.59,0.00033698,7]
[367093965,1750654295509,-11823.47,0.00033698,7]
[367093966,1750654295519,-958.23,0.00033698,7]
[367093967,1750654295528,-490.0,0.00033698,7]
[367093968,1750654295537,-2835.83,0.00033698,7]
[367093969,1750654295546,-213.9817738,0.00033698,7]
[367093970,1750654295556,-490.0,0.00033698,7]
[367093971,1750654295565,-700.15,0.00033698,7]
[367093972,1750654295575,-663.81,0.00033698,7]
[367093973,1750654295585,-1855.48,0.00033698,7]
[367093974,1750654295595,-1438.05,0.00033698,7]
[367093975,1750654295604,-490.0,0.00033698,7]
[367093976,1750654295613,-508.05,0.00033698,7]
[367093977,1750654295622,-5345.74,0.00033698,7]
[367093978,1750654295631,-490.0,0.00033698,7]
[367093979,1750654295641,-1313.19,0.00033698,7]
[367093980,1750654295651,-609.17,0.00033698,7]
[367093981,1750654295660,-1268.28,0.00033698,7]
[367093982,1750654295669,-2328.53,0.00033698,7]
[367093983,1750654295678,-2092.4,0.00033698,7]
[367093984,1750654295688,-899.41,0.00033698,7]
[367093985,1750654295697,-1172.27,0.00033698,7]
[367093986,1750654295706,-490.0,0.00033698,7]
[367093987,1750654295716,-666.85,0.00033698,7]
[367093988,1750654295725,-1947.1,0.00033698,7]
[367093989,1750654295734,-490.0,0.00033698,7]
[367093990,1750654295744,-2023.32,0.00033698,7]
[367093991,1750654295753,-2594.21,0.00033698,7]
[367093992,1750654295762,-490.0,0.00033698,7]
[367093993,1750654295771,-1494.66,0.00033698,7]
[367093994,1750654295780,-519.03,0.00033698,7]
[367093995,1750654295790,-558.0,0.00033698,7]
[367093996,1750654295799,-1421.52,0.00033698,7]
[367093997,1750654295808,-490.0,0.00033698,7]
[367093998,1750654295818,-554.01,0.00033698,7]
[367093999,1750654295827,-548.2089135,0.00033698,7]
[367094000,1750654295837,-524.34,0.00033698,7]
[367094001,1750654295847,-1943.95,0.00033698,7]
[367094002,1750654295856,-1061.09,0.00033698,7]
[367094003,1750654295866,-490.0,0.00033698,7]
[367094004,1750654295875,-1909.21,0.00033698,7]
[367094005,1750654295885,-1837.86,0.00033698,7]
[367094006,1750654295894,-490.0,0.00033698,7]
[367094007,1750654295903,-8538.53,0.00033698,7]
[367094008,1750654295913,-490.0,0.00033698,7]
[367094009,1750654295922,-1479.74,0.00033698,7]
[367094010,1750654295932,-2140.8,0.00033698,7]
[367094011,1750654295941,-1515.68,0.00033698,7]
[367094012,1750654295950,-490.0,0.00033698,7]
[367094013,1750654295960,-2537.72,0.00033698,7]
[367094014,1750654295969,-1027.94,0.00033698,7]
[367094015,1750654295978,-490.0,0.00033698,7]
[367094016,1750654295987,-838.59,0.00033698,7]
[367094017,1750654295998,-1794.79,0.00033698,7]
[367094018,1750654296007,-490.0,0.00033698,2]
[367094019,1750654296016,-5931.83,0.00033698,7]
[367094020,1750654296026,-1409.99,0.00033698,7]
[367094021,1750654296035,-2002.86,0.00033698,7]
[367094022,1750654296044,-3543.89,0.00033698,7]
[367094023,1750654296054,-490.0,0.00033698,7]
[367094024,1750654296064,-1282.2,0.00033698,7]
[367094025,1750654296076,-2436.5,0.00033698,7]
[367094026,1750654296087,-565.29,0.00033698,7]
[367094027,1750654296097,-1145.23,0.00033698,7]
[367094028,1750654296108,-2134.86,0.00033698,7]
[367094029,1750654296117,-490.0,0.00033698,7]
[367094030,1750654296130,-763.72,0.00033698,7]
[367094031,1750654296140,-1306.64,0.00033698,7]
[367094032,1750654296150,-1490.75,0.00033698,7]
[367094033,1750654296160,-835.97,0.00033698,7]
[367094034,1750654296171,-1689.8,0.00033698,7]
[367094035,1750654296181,-878.53,0.00033698,7]
[367094036,1750654296191,-1942.4,0.00033698,7]
[367094037,1750654296202,-2435.48,0.00033698,7]
[367094038,1750654296212,-563.92,0.00033698,7]
[367094039,1750654296222,-2321.83,0.00033698,7]
[367094040,1750654296232,-2021.27,0.00033698,7]
[367094041,1750654296242,-490.0,0.00033698,7]
[367094042,1750654296252,-490.0,0.00033698,7]
[367094043,1750654296263,-490.0,0.00033698,7]
[367094044,1750654296273,-490.0,0.00033698,7]
[367094045,1750654296283,-832.17,0.00033698,7]
[367094046,1750654296293,-1716.26,0.00033698,7]
[367094047,1750654296302,-490.0,0.00033698,7]
[367094048,1750654296312,-490.0,0.00033698,7]
[367094049,1750654296322,-490.51919826,0.00033698,7]
[367094050,1750654296332,-490.0,0.00033698,7]
[367094051,1750654296342,-617.68,0.00033698,7]
[367094052,1750654296352,-1853.29,0.00033698,7]
[367094053,1750654296361,-490.0,0.00033698,7]
[367094054,1750654296371,-6617.48,0.00033698,7]
[367094055,1750654296380,-490.0,0.00033698,7]
[367094056,1750654296389,-490.0,0.00033698,7]
[367094057,1750654296399,-867.55,0.00033698,7]
[367094058,1750654296409,-2580.22,0.00033698,7]
[367094059,1750654296419,-12988.61,0.00033698,7]
[367094060,1750654296429,-490.0,0.00033698,7]
[367094061,1750654296438,-490.0,0.00033698,7]
[367094062,1750654296449,-739.56,0.00033698,7]
[367094063,1750654296459,-4460.32,0.00033698,7]
[367094064,1750654296468,-490.0,0.00033698,7]
[367094065,1750654296478,-1979.61,0.00033698,7]
[367094066,1750654296488,-490.0,0.00033698,7]
[367094067,1750654296498,-1485.85,0.00033698,7]
[367094068,1750654296508,-1083.46,0.00033698,7]
[367094069,1750654296518,-5524.49,0.00033698,7]
[367094070,1750654296527,-651.27,0.00033698,7]
[367094071,1750654296537,-490.0,0.00033698,7]
[367094072,1750654296546,-378.02468836,0.00033698,7]
[367094073,1750654296556,-239.45723296,0.00033698,7]
[367094074,1750654296566,-1635.55,0.00033698,7]
[367094075,1750654296575,-490.0,0.00033698,7]
[367094076,1750654296585,-1962.38,0.00033698,7]
[367094077,1750654296594,-699.02,0.00033698,7]
[367094078,1750654296603,-490.0,0.00033698,7]
[367094079,1750654296612,-1166.97,0.00033698,7]
[367094080,1750654296622,-226.97047595,0.00033698,7]
[367094081,1750654296631,-16479.57,0.00033698,7]
[367094082,1750654296641,-490.0,0.00033698,7]
[367094083,1750654296652,-9584.54,0.00033698,7]
[367094084,1750654296662,-3682.87,0.00033698,7]
[367094085,1750654296671,-987.69,0.00033698,7]
[367094086,1750654296682,-536.48,0.00033698,7]
[367094087,1750654296692,-1774.95,0.00033698,7]
[367094088,1750654296702,-3180.73,0.00033698,7]
[367094089,1750654296711,-490.0,0.00033698,7]
[367094090,1750654296721,-490.0,0.00033698,7]
[367094091,1750654296730,-878.59,0.00033698,7]
[367094092,1750654296740,-4276.69,0.00033698,7]
[367094093,1750654296749,-735.74,0.00033698,7]
[367094094,1750654296759,-2258.37,0.00033698,7]
[367094095,1750654296768,-3318.43,0.00033698,7]
[367094096,1750654296778,-1968.26,0.00033698,7]
[367094097,1750654296789,-1807.52,0.00033698,7]
[367094098,1750654296799,-490.0,0.00033698,7]
[367094099,1750654296809,-490.0,0.00033698,7]
[367094100,1750654296819,-863.73,0.00033698,7]
[367094101,1750654296828,-151.0,0.00033698,7]
[367094102,1750654296837,-514.87,0.00033698,7]
[367094103,1750654296933,-151.0,0.00033698,7]
[367094104,1750654296942,-851.79,0.00033698,7]
[367094105,1750654296952,-4217.64,0.00033698,7]
[367094106,1750654296961,-242.76854254,0.00033698,7]
[367094107,1750654296971,-1781.57,0.00033698,7]
[367094108,1750654296980,-2039.85,0.00033698,7]
[367094109,1750654296989,-1996.43,0.00033698,7]
[367094110,1750654296999,-835.17,0.00033698,7]
[367094111,1750654297008,-1167.68,0.00033698,7]
[367094112,1750654297017,-239.25676251,0.00033698,7]
[367094113,1750654297026,-490.0,0.00033698,7]
[367094114,1750654297036,-490.0,0.00033698,7]
[367094115,1750654297046,-1984.15,0.00033698,7]
[367094116,1750654297058,-5782.36,0.00033698,7]
[367094117,1750654297067,-1730.74,0.00033698,7]
[367094118,1750654297076,-583.16,0.00033698,7]
[367094119,1750654297086,-1299.08,0.00033698,7]
[367094120,1750654297095,-490.0,0.00033698,7]
[367094121,1750654297105,-490.0,0.00033698,7]
[367094122,1750654297114,-1851.05,0.00033698,7]
[367094123,1750654297125,-2155.57,0.00033698,7]
[367094124,1750654297135,-490.0,0.00033698,7]
[367094125,1750654297144,-2180.36,0.00033698,7]
[367094126,1750654297154,-1693.56,0.00033698,7]
[367094127,1750654297164,-1562.37,0.00033698,7]
[367094128,1750654297173,-490.0,0.00033698,7]
[367094129,1750654297183,-2056.32,0.00033698,7]
[367094130,1750654297192,-974.07,0.00033698,7]
[367094131,1750654297201,-433.06627564,0.00033698,7]
[367094132,1750654297210,-1733.62,0.00033698,7]
[367094133,1750654297219,-873.16,0.00033698,7]
[367094134,1750654297229,-1845.26,0.00033698,7]
[367094135,1750654297238,-647.41,0.00033698,7]
[367094136,1750654297248,-1469.24,0.00033698,7]
[367094137,1750654297257,-1326.79,0.00033698,7]
[367094138,1750654297266,-319.29658236,0.00033698,2]
[367094139,1750654297276,-490.0,0.00033698,7]
[367094140,1750654297285,-1747.03,0.00033698,7]
[367094141,1750654297295,-1544.69,0.00033698,7]
[367094142,1750654297304,-2054.64,0.00033698,7]
[367094143,1750654297314,-490.0,0.00033698,7]
[367094144,1750654297323,-933.68,0.00033698,7]
[367094145,1750654297332,-810.39,0.00033698,7]
[367094146,1750654297342,-2500.9,0.00033698,7]
[367094147,1750654297351,-1791.95,0.00033698,7]
[367094148,1750654297361,-490.0,0.00033698,7]
[367094149,1750654297370,-349.11,0.00033698,7]
[367094150,1750654297379,-4628.77,0.00033698,7]
[367094151,1750654297388,-408.28544325,0.00033698,7]
[367094152,1750654297397,-1577.25,0.00033698,7]
[367094153,1750654297407,-151.0,0.00033698,7]
[367094154,1750654297416,-159.320129,0.00033698,7]
[367094155,1750654297426,-490.0,0.00033698,7]
[367094156,1750654297435,-1475.64,0.00033698,7]
[367094157,1750654297445,-490.0,0.00033698,7]
[367094158,1750654297455,-946.25,0.00033698,7]
[367094159,1750654297464,-1080.2,0.00033698,7]
[367094160,1750654297473,-490.0,0.00033698,7]
[367094161,1750654297483,-490.0,0.00033698,7]
[367094162,1750654297492,-5581.72,0.00033698,7]
[367094163,1750654297501,-867.5,0.00033698,7]
[367094164,1750654297510,-490.0,0.00033698,7]
[367094165,1750654297519,-490.0,0.00033698,7]
[367094166,1750654297529,-1867.5,0.00033698,7]
[367094167,1750654297538,-490.0,0.00033698,7]
[367094168,1750654297547,-2817.35,0.00033698,7]
[367094169,1750654297556,-2899.48,0.00033698,7]
[367094170,1750654297566,-1251.06,0.00033698,7]
[367094171,1750654297575,-490.0,0.00033698,7]
[367094172,1750654297585,-1667.65,0.00033698,7]
[367094173,1750654297594,-490.0,0.00033698,7]
[367094174,1750654297603,-490.0,0.00033698,7]
[367094175,1750654297613,-2082.64,0.00033698,7]
[367094176,1750654297622,-490.0,0.00033698,7]
[367094177,1750654297632,-1163.87,0.00033698,7]
[367094178,1750654297641,-788.59,0.00033698,7]
[367094179,1750654297650,-490.0,0.00033698,7]
[367094180,1750654297659,-490.0,0.00033698,7]
[367094181,1750654297669,-3124.09,0.00033698,7]
[367094182,1750654297678,-2165.19,0.00033698,7]
[367094183,1750654297687,-1465.7,0.00033698,7]
[367094184,1750654297697,-490.0,0.00033698,7]
[367094185,1750654297706,-490.0,0.00033698,7]
[367094186,1750654297715,-766.4,0.00033698,7]
[367094187,1750654297725,-13309.13,0.00033698,7]
[367094188,1750654297734,-7426.49,0.00033698,7]
[367094189,1750654297743,-255.78,0.00033698,7]
[367094190,1750654297753,-490.0,0.00033698,7]
[367094191,1750654297762,-1901.1,0.00033698,7]
[367094192,1750654297771,-890.49,0.00033698,7]
[367094193,1750654297781,-1982.24,0.00033698,7]
[367094194,1750654297791,-490.0,0.00033698,7]
[367094195,1750654297800,-1885.34,0.00033698,7]
[367094196,1750654297809,-496.54569168,0.00033698,7]
[367094197,1750654297819,-837.26,0.00033698,7]
[367094198,1750654297828,-490.0,0.00033698,7]
[367094199,1750654297837,-490.0,0.00033698,7]
[367094200,1750654297846,-490.0,0.00033698,7]
[367094201,1750654297856,-894.13,0.00033698,7]
[367094202,1750654297865,-490.0,0.00033698,7]
[367094203,1750654297874,-236.09972361,0.00033698,7]
[367094204,1750654297884,-1293.41,0.00033698,7]
[367094205,1750654297894,-1694.58,0.00033698,7]
[367094206,1750654297904,-1804.56,0.00033698,7]
[367094207,1750654297913,-490.0,0.00033698,7]
[367094208,1750654297922,-34343.81,0.00033698,7]
[367094209,1750654297934,-605.23,0.00033698,7]
[367094210,1750654297945,-490.0,0.00033698,7]
[367094211,1750654297955,-490.0,0.00033698,7]
[367094212,1750654297964,-271.0882388,0.00033698,7]
[367094213,1750654297974,-490.0,0.00033698,7]
[367094214,1750654297984,-1888.3,0.00033698,7]
[367094215,1750654297993,-359.85708488,0.00033698,7]
[367094216,1750654298002,-490.0,0.00033698,7]
[367094217,1750654298011,-8898.26,0.00033698,7]
[367094218,1750654298020,-490.0,0.00033698,7]
[367094219,1750654298029,-490.0,0.00033698,7]
[367094220,1750654298040,-1935.47,0.00033698,7]
[367094221,1750654298050,-1976.08,0.00033698,7]
[367094222,1750654298060,-1276.19,0.00033698,7]
[367094223,1750654298069,-490.0,0.00033698,7]
[367094224,1750654298078,-667.82,0.00033698,7]
[367094225,1750654298088,-490.0,0.00033698,7]
[367094226,1750654298097,-490.0,0.00033698,7]
[367094227,1750654298107,-490.0,0.00033698,7]
[367094228,1750654298118,-490.0,0.00033698,7]
[367094229,1750654298131,-822.02,0.00033698,7]
[367094230,1750654298142,-2029.59,0.00033698,7]
[367094231,1750654298151,-1009.86,0.00033698,7]
[367094232,1750654298160,-362.44527131,0.00033698,7]
[367094233,1750654298170,-2172.01,0.00033698,7]
[367094234,1750654298180,-490.0,0.00033698,7]
[367094235,1750654298191,-490.0,0.00033698,7]
[367094236,1750654298201,-490.0,0.00033698,7]
[367094237,1750654298211,-490.0,0.00033698,7]
[367094238,1750654298220,-3430.29,0.00033698,7]
[367094239,1750654298230,-490.0,0.00033698,7]
[367094240,1750654298241,-213.67803298,0.00033698,7]
[367094241,1750654298251,-2151.74,0.00033698,7]
[367094242,1750654298261,-1837.54,0.00033698,7]
[367094243,1750654298271,-5336.48,0.00033698,7]
[367094244,1750654298281,-490.0,0.00033698,7]
[367094245,1750654298291,-159.62,0.00033698,7]
[367094246,1750654298301,-202.201633,0.00033698,7]
[367094247,1750654298310,-490.0,0.00033698,7]
[367094248,1750654298320,-575.19,0.00033698,7]
[367094249,1750654298329,-490.0,0.00033698,7]
[367094250,1750654298339,-202.201633,0.00033698,7]
[367094251,1750654298348,-490.0,0.00033698,7]
[367094252,1750654298357,-490.0,0.00033698,7]
[367094253,1750654298367,-490.0,0.00033698,7]
[367094254,1750654298376,-1755.72,0.00033698,7]
[367094255,1750654298385,-2004.11,0.00033698,7]
[367094256,1750654298395,-202.201633,0.00033698,7]
[367094257,1750654298404,-202.201633,0.00033698,7]
[367094258,1750654298413,-490.0,0.00033698,7]
[367094259,1750654298422,-6398.29,0.00033698,7]
[367094260,1750654298432,-4081.92,0.00033698,7]
[367094261,1750654298442,-490.0,0.00033698,7]
[367094262,1750654298452,-1446.95,0.00033698,7]
[367094263,1750654298461,-1654.17,0.00033698,7]
[367094264,1750654298470,-490.0,0.00033698,7]
[367094265,1750654298479,-490.0,0.00033698,7]
[367094266,1750654298488,-726.07,0.00033698,7]
[367094267,1750654298498,-3499.05,0.00033698,7]
[367094268,1750654298507,-490.0,0.00033698,7]
[367094269,1750654298517,-490.0,0.00033698,7]
[367094270,1750654298526,-494.92073987,0.00033698,7]
[367094271,1750654298535,-1944.72,0.00033698,7]
[367094272,1750654298544,-2288.39,0.00033698,7]
[367094273,1750654298553,-1063.36,0.00033698,7]
[367094274,1750654298563,-5939.24,0.00033698,7]
[367094275,1750654298572,-437.9359668,0.00033698,7]
[367094276,1750654298581,-2007.27,0.00033698,7]
[367094277,1750654298590,-1658.54,0.00033698,7]
[367094278,1750654298599,-1481.12,0.00033698,7]
[367094279,1750654298608,-490.0,0.00033698,7]
[367094280,1750654298617,-1329.63,0.00033698,7]
[367094281,1750654298630,-490.0,0.00033698,7]
[367094282,1750654298640,-997.29,0.00033698,7]
[367094283,1750654298649,-490.0,0.00033698,7]
[367094284,1750654298660,-1839.68,0.00033698,7]
[367094285,1750654298669,-679.69,0.00033698,7]
[367094286,1750654298679,-9688.5,0.00033698,7]
[367094287,1750654298689,-2201.94,0.00033698,7]
[367094288,1750654298699,-714.74,0.00033698,7]
[367094289,1750654298708,-1145.73,0.00033698,7]
[367094290,1750654298718,-2029.14,0.00033698,7]
[367094291,1750654298727,-877.52,0.00033698,7]
[367094292,1750654298737,-1253.69,0.00033698,7]
[367094293,1750654298747,-1877.23,0.00033698,7]
[367094294,1750654298758,-1815.85,0.00033698,7]
[367094295,1750654298767,-490.0,0.00033698,7]
[367094296,1750654298777,-3323.77,0.00033698,7]
[367094297,1750654298786,-1375.9,0.00033698,7]
[367094298,1750654298796,-3752.75,0.00033698,7]
[367094299,1750654298806,-490.0,0.00033698,7]
[367094300,1750654298816,-3428.92,0.00033698,7]
[367094301,1750654298826,-1562.34,0.00033698,7]
[367094302,1750654298836,-1888.93,0.00033698,7]
[367094303,1750654298846,-1151.59,0.00033698,2]
[367094304,1750654298855,-490.0,0.00033698,7]
[367094305,1750654298865,-490.0,0.00033698,7]
[367094306,1750654298874,-490.0,0.00033698,7]
[367094307,1750654298884,-3581.54,0.00033698,7]
[367094308,1750654298894,-490.0,0.00033698,7]
[367094309,1750654298903,-490.0,0.00033698,7]
[367094310,1750654298913,-1951.48,0.00033698,7]
[367094311,1750654298922,-2006.4,0.00033698,7]
[367094312,1750654298932,-490.0,0.00033698,7]
[367094313,1750654298942,-686.46,0.00033698,7]
[367094314,1750654298952,-181.92340943,0.00033698,7]
[367094315,1750654298961,-490.0,0.00033698,7]
[367094316,1750654298971,-879.8,0.00033698,7]
[367094317,1750654298980,-8055.62,0.00033698,7]
[367094318,1750654298990,-748.7,0.00033698,7]
[367094319,1750654299000,-1483.38,0.00033698,7]
[367094320,1750654299010,-543.72,0.00033698,7]
[367094321,1750654299019,-842.79,0.00033698,7]
[367094322,1750654299028,-2873.68,0.00033698,7]
[367094323,1750654299038,-490.0,0.00033698,7]
[367094324,1750654299047,-490.0,0.00033698,7]
[367094325,1750654299057,-490.0,0.00033698,7]
[367094326,1750654299066,-1490.22,0.00033698,7]
[367094327,1750654299075,-490.0,0.00033698,7]
[367094328,1750654299085,-432.82,0.00033698,7]
[367094329,1750654299095,-490.0,0.00033698,7]
[367094330,1750654299104,-490.0,0.00033698,7]
[367094331,1750654299114,-1488.74,0.00033698,7]
[367094332,1750654299125,-490.0,0.00033698,7]
[367094333,1750654299135,-990.57,0.00033698,7]
[367094334,1750654299145,-490.0,0.00033698,7]
[367094335,1750654299156,-58503.27,0.000337,14]
[367094336,1750654299165,-151.0,0.000337,7]
[367094337,1750654299175,-236.032495,0.000337,7]
[367094338,1750654299186,-500.999829,0.000337,7]
[367094339,1750654299196,-151.0,0.000337,7]
[367094340,1750654299206,-615.840398,0.000337,7]
[367094341,1750654299216,-615.840398,0.000337,7]
[367094342,1750654299226,-557.494478,0.000337,7]
[367094343,1750654299236,-557.494478,0.000337,7]
[367094344,1750654299246,-151.0,0.000337,7]
[367094345,1750654299256,-588.12474,0.000337,7]
[367094346,1750654299267,-588.12474,0.000337,7]
[367094347,1750654299277,-420.755357,0.000337,7]
[367094348,1750654299286,-420.755357,0.000337,7]
[367094349,1750654299297,-17685.44,0.000337,5]
[367094350,1750654299307,-498.40554987,0.00033721,5]
[367094351,1750654299319,-1000.0,0.00033721,5]
[367094352,1750654299329,-762.5970682,0.00033721,5]
[367094353,1750654299339,-511.60760463,0.00033727,7]
[367094354,1750654299348,-151.0,0.00033727,7]
[367094355,1750654299358,-151.0,0.00033727,7]
[367094356,1750654299368,-151.0,0.00033727,7]
[367094357,1750654299378,-1200.0,0.00033727,7]
[367094358,1750654299387,-151.0,0.00033727,7]
[367094359,1750654299397,-1200.0,0.00033727,7]
[367094360,1750654299406,-151.0,0.00033727,7]
[367094361,1750654299416,-792.62612977,0.00033727,7]
[367094362,1750654299426,-151.0,0.00033727,7]
[367094363,1750654299435,-151.0,0.00033727,7]
[367094364,1750654299446,-151.0,0.00033727,7]
[367094365,1750654299456,-151.0,0.00033727,7]
[367094366,1750654299465,-151.0,0.00033727,7]
[367094367,1750654299475,-151.0,0.00033727,7]
[367094368,1750654299484,-151.0,0.00033727,7]
[367094369,1750654299494,-151.0,0.00033727,7]
[367094370,1750654299503,-154.0,0.00033727,7]
[367094371,1750654299513,-151.0,0.00033727,7]
[367094372,1750654299522,-154.0,0.00033727,7]
[367094373,1750654299532,-151.0,0.00033727,7]
[367094374,1750654299541,-154.0,0.00033727,7]
[367094375,1750654299551,-151.0,0.00033727,7]
[367094376,1750654299560,-154.0,0.00033727,7]
[367094377,1750654299571,-154.0,0.00033727,7]
[367094378,1750654299580,-151.0,0.00033727,7]
[367094379,1750654299590,-154.0,0.00033727,7]
[367094380,1750654299599,-151.0,0.00033727,7]
[367094381,1750654299609,-154.0,0.00033727,7]
[367094382,1750654299619,-151.0,0.00033727,7]
[367094383,1750654299628,-154.0,0.00033727,7]
[367094384,1750654299638,-151.0,0.00033727,7]
[367094385,1750654299648,-154.0,0.00033727,7]
[367094386,1750654299658,-151.0,0.00033727,7]
[367094387,1750654299668,-151.0,0.00033727,7]
[367094388,1750654299677,-155.93888828,0.00033727,7]
[367094389,1750654299687,-153.81368887,0.00033727,7]
[367094390,1750654299696,-166.0,0.00033727,7]
[367094391,1750654299706,-166.0,0.00033727,7]
[367094392,1750654299715,-362.07280333,0.0003373,5]
[367094393,1750654299725,-178.13013036,0.00033753,2]
[367094394,1750654299735,-203.0,0.0003377,10]
[367094395,1750654299744,-150.0,0.00033798,2]
[367094396,1750654299754,-150.68,0.00033798,2]
[367094397,1750654299764,-500.0,0.0003386,7]
[367094398,1750654299773,-500.0,0.0003386,7]
[367094399,1750654299782,-151.0,0.00033899,7]
[367094400,1750654299792,-7142.856,0.00033899,12]
[367094401,1750654299802,-7407.141672,0.00033899,12]
[367094402,1750654299812,-7681.20591386,0.00033899,12]
[367094403,1750654299822,-7965.41053268,0.00033899,12]
[367094404,1750654299832,-8260.13072239,0.00033899,12]
[367094405,1750654299841,-8565.75555911,0.00033899,12]
[367094406,1750654299851,-8882.6885148,0.00033899,12]
[367094407,1750654299860,-9211.34798985,0.00033899,12]
[367094408,1750654299870,-9552.16786547,0.00033899,12]
[367094409,1750654299879,-9905.5980765,0.00033899,12]
[367094410,1750654299889,-10272.10520533,0.00033899,12]
[367094411,1750654299899,-10652.17309792,0.00033899,12]
[367094412,1750654299909,-10592.56760567,0.00033899,12]
[367094413,1750654299919,-400.0,0.000339,12]
[367094414,1750654299931,-286.02022925,0.000339,2]
[367094415,1750654299941,-286.02022915,0.000339,2]
[367094416,1750654299950,-286.02022915,0.000339,2]
[367094417,1750654299960,-286.02022915,0.000339,2]
[367094418,1750654299970,-286.02022915,0.000339,2]
[367094419,1750654299980,-286.02022915,0.000339,2]
[367094420,1750654299990,-286.02022915,0.000339,2]
[367094421,1750654299999,-286.02022915,0.000339,2]
[367094422,1750654300009,-286.02022915,0.000339,2]
[367094423,1750654300018,-286.02022915,0.000339,2]
[367094424,1750654300027,-286.02022915,0.000339,2]
[367094425,1750654300037,-286.02022915,0.000339,2]
[367094426,1750654300048,-286.02022915,0.000339,2]
[367094427,1750654300058,-286.02022915,0.000339,2]
[367094428,1750654300068,-286.02022915,0.000339,2]
[367094429,1750654300078,-286.02022915,0.000339,2]
[367094430,1750654300088,-286.02022915,0.000339,2]
[367094431,1750654300098,-286.02022915,0.000339,2]
[367094432,1750654300107,-400.0,0.000339,12]
[367094433,1750654300117,-286.02022915,0.000339,2]
[367094434,1750654300129,-286.02022915,0.000339,2]
[367094435,1750654300139,-500.0,0.00033916,7]
[367094436,1750654300149,-598.09831769,0.00033916,7]
[367094437,1750654300159,-151.0,0.00033917,7]
[367094438,1750654300170,-151.0,0.00033917,30]